[Event "*** Titled Tuesday Blitz"]
[Site "Chess.com"]
[Date "2021.02.02"]
[Round "4"]
[White "Tekushka"]
[Black "Walter_White_Poland"]
[Result "0-1"]
[WhiteElo "2444"]
[BlackElo "2302"]
[TimeControl "180+1"]
[EndTime "10:42:01 PST"]
[Termination "Walter_White_Poland won on time"]

1. e4 {[%clk 0:03:00.9]} 1... e5 {[%clk 0:03:00]} 2. Nf3 {[%clk 0:03:00.4]} 2...
Nc6 {[%clk 0:03:00.2]} 3. Bc4 {[%clk 0:03:00.1]} 3... Nf6 {[%clk 0:02:59.9]} 4.
d3 {[%clk 0:02:58.3]} 4... d5 {[%clk 0:02:59.9]} 5. exd5 {[%clk 0:02:52.9]} 5...
Nxd5 {[%clk 0:03:00.2]} 6. O-O {[%clk 0:02:45.2]} 6... Nb6 {[%clk 0:02:58.2]} 7.
Bb5 {[%clk 0:02:43.1]} 7... Bd6 {[%clk 0:02:58.2]} 8. Re1 {[%clk 0:02:38]} 8...
f6 {[%clk 0:02:58.2]} 9. h3 {[%clk 0:02:08.5]} 9... Bd7 {[%clk 0:02:55.8]} 10.
d4 {[%clk 0:01:29.1]} 10... O-O {[%clk 0:02:52.6]} 11. dxe5 {[%clk 0:01:28.5]}
11... Nxe5 {[%clk 0:02:50.3]} 12. Bxd7 {[%clk 0:01:25.8]} 12... Qxd7 {[%clk
0:02:23.8]} 13. Nbd2 {[%clk 0:01:21.7]} 13... Rad8 {[%clk 0:02:15.8]} 14. Ne4
{[%clk 0:01:20]} 14... Nxf3+ {[%clk 0:02:08.2]} 15. Qxf3 {[%clk 0:01:19.9]}
15... Be5 {[%clk 0:02:05.6]} 16. Nc5 {[%clk 0:01:13.1]} 16... Qd5 {[%clk
0:02:02.7]} 17. Qxd5+ {[%clk 0:00:49.8]} 17... Rxd5 {[%clk 0:02:02.6]} 18. Ne6
{[%clk 0:00:46.8]} 18... Rf7 {[%clk 0:01:04]} 19. Nf4 {[%clk 0:00:38.8]} 19...
Rd8 {[%clk 0:00:54.1]} 20. Nd3 {[%clk 0:00:37.5]} 20... Bd6 {[%clk 0:00:48.5]}
21. b3 {[%clk 0:00:34.4]} 21... Nd5 {[%clk 0:00:43.7]} 22. Bd2 {[%clk
0:00:28.7]} 22... Rfd7 {[%clk 0:00:35.1]} 23. Re2 {[%clk 0:00:24.4]} 23... Kf7
{[%clk 0:00:35.2]} 24. Rae1 {[%clk 0:00:24]} 24... b5 {[%clk 0:00:30.7]} 25. Ra1
{[%clk 0:00:18.6]} 25... b4 {[%clk 0:00:28.4]} 26. Kf1 {[%clk 0:00:13]} 26... a5
{[%clk 0:00:28.1]} 27. Be3 {[%clk 0:00:11.1]} 27... Nc3 {[%clk 0:00:25.8]} 28.
Ree1 {[%clk 0:00:10.6]} 28... Re8 {[%clk 0:00:20.2]} 29. Bc5 {[%clk 0:00:09.8]}
29... Rxe1+ {[%clk 0:00:18.9]} 30. Kxe1 {[%clk 0:00:09.4]} 30... Bxc5 {[%clk
0:00:19.2]} 31. Nxc5 {[%clk 0:00:09.5]} 31... Re7+ {[%clk 0:00:19.5]} 32. Kf1
{[%clk 0:00:09.4]} 32... Re2 {[%clk 0:00:17.8]} 33. Na6 {[%clk 0:00:06.8]} 33...
Rxc2 {[%clk 0:00:16.8]} 34. Nxc7 {[%clk 0:00:06.8]} 34... Nxa2 {[%clk
0:00:16.6]} 35. Nd5 {[%clk 0:00:05.8]} 35... a4 {[%clk 0:00:13.9]} 36. bxa4
{[%clk 0:00:03.6]} 36... b3 {[%clk 0:00:14.2]} 37. Rb1 {[%clk 0:00:03.6]} 37...
b2 {[%clk 0:00:13.1]} 0-1

[Event "*** Titled Tuesday Blitz"]
[Site "Chess.com"]
[Date "2021.02.02"]
[Round "4"]
[White "J36225"]
[Black "Andrakhanova"]
[Result "0-1"]
[WhiteElo "2428"]
[BlackElo "2277"]
[TimeControl "180+1"]
[EndTime "10:42:01 PST"]
[Termination "Andrakhanova won on time"]

1. e4 {[%clk 0:03:00.9]} 1... c5 {[%clk 0:02:59.6]} 2. Nf3 {[%clk 0:03:00.1]}
2... e6 {[%clk 0:02:59.8]} 3. d4 {[%clk 0:02:59.4]} 3... cxd4 {[%clk 0:03:00.7]}
4. Nxd4 {[%clk 0:03:00.3]} 4... Nf6 {[%clk 0:03:01]} 5. Nc3 {[%clk 0:03:00.2]}
5... Nc6 {[%clk 0:03:01.2]} 6. Ndb5 {[%clk 0:02:59.6]} 6... d6 {[%clk
0:03:00.8]} 7. Bf4 {[%clk 0:02:58.9]} 7... e5 {[%clk 0:03:00.9]} 8. Bg5 {[%clk
0:02:59.2]} 8... a6 {[%clk 0:03:00.6]} 9. Na3 {[%clk 0:02:59.2]} 9... b5 {[%clk
0:03:01.5]} 10. Nd5 {[%clk 0:02:59.2]} 10... Be7 {[%clk 0:03:01.3]} 11. Nxe7
{[%clk 0:02:59.7]} 11... Qxe7 {[%clk 0:03:00.1]} 12. c4 {[%clk 0:02:58.8]} 12...
b4 {[%clk 0:02:58.7]} 13. Nc2 {[%clk 0:02:58.5]} 13... a5 {[%clk 0:02:58.7]} 14.
Be2 {[%clk 0:02:55.2]} 14... h6 {[%clk 0:02:58.1]} 15. Bxf6 {[%clk 0:02:54.3]}
15... Qxf6 {[%clk 0:02:59]} 16. O-O {[%clk 0:02:54.2]} 16... O-O {[%clk
0:02:57.9]} 17. Qd2 {[%clk 0:02:48.9]} 17... Bb7 {[%clk 0:02:49.5]} 18. Rad1
{[%clk 0:02:44.9]} 18... Rfd8 {[%clk 0:02:41.2]} 19. b3 {[%clk 0:02:44.7]} 19...
Ne7 {[%clk 0:02:36.1]} 20. f3 {[%clk 0:02:42.1]} 20... Ng6 {[%clk 0:02:33.5]}
21. Ne3 {[%clk 0:02:41.7]} 21... Nf4 {[%clk 0:02:09.4]} 22. g3 {[%clk
0:02:38.1]} 22... Ne6 {[%clk 0:02:02.9]} 23. Nf5 {[%clk 0:02:37.9]} 23... Ra6
{[%clk 0:01:46.3]} 24. Qe3 {[%clk 0:02:21.6]} 24... Rc6 {[%clk 0:01:38.2]} 25.
Rd2 {[%clk 0:02:18]} 25... h5 {[%clk 0:01:35.8]} 26. Rfd1 {[%clk 0:02:13.7]}
26... Nc5 {[%clk 0:01:31.4]} 27. Kg2 {[%clk 0:01:05.5]} 27... g6 {[%clk
0:01:13.4]} 28. Qh6 {[%clk 0:00:54.5]} 28... Bc8 {[%clk 0:01:08.3]} 29. Ne3
{[%clk 0:00:41.6]} 29... Be6 {[%clk 0:01:02.6]} 30. Nd5 {[%clk 0:00:16]} 30...
Bxd5 {[%clk 0:01:02.4]} 31. Rxd5 {[%clk 0:00:16.9]} 31... Ne6 {[%clk 0:01:00.5]}
32. Rxa5 {[%clk 0:00:12.7]} 32... Nd4 {[%clk 0:00:59.7]} 33. Qe3 {[%clk
0:00:12.2]} 33... Rcc8 {[%clk 0:00:48.7]} 34. Rd5 {[%clk 0:00:11.9]} 34... Ra8
{[%clk 0:00:47.7]} 35. Rd2 {[%clk 0:00:11.5]} 35... Ra6 {[%clk 0:00:46.8]} 36.
f4 {[%clk 0:00:11.5]} 36... Rda8 {[%clk 0:00:44.3]} 37. fxe5 {[%clk 0:00:07.9]}
37... dxe5 {[%clk 0:00:45.2]} 38. c5 {[%clk 0:00:04.8]} 38... Rxa2 {[%clk
0:00:45.1]} 39. c6 {[%clk 0:00:05]} 39... Qxc6 {[%clk 0:00:37.5]} 40. R5xd4
{[%clk 0:00:01.7]} 40... exd4 {[%clk 0:00:35.1]} 41. Qxd4 {[%clk 0:00:02.6]}
41... Rxd2 {[%clk 0:00:32.4]} 42. Qxd2 {[%clk 0:00:02.7]} 42... Qc3 {[%clk
0:00:30.9]} 43. Qd6 {[%clk 0:00:01.5]} 43... Ra2 {[%clk 0:00:28.6]} 0-1

[Event "*** Titled Tuesday Blitz"]
[Site "Chess.com"]
[Date "2021.02.02"]
[Round "4"]
[White "alexrustemov"]
[Black "ehrenfeld"]
[Result "1-0"]
[WhiteElo "2764"]
[BlackElo "2515"]
[TimeControl "180+1"]
[EndTime "10:42:04 PST"]
[Termination "alexrustemov won on time"]

1. Nf3 {[%clk 0:03:00.9]} 1... Nf6 {[%clk 0:02:53.3]} 2. c4 {[%clk 0:02:59.6]}
2... e6 {[%clk 0:02:52.2]} 3. d4 {[%clk 0:02:58.9]} 3... Bb4+ {[%clk 0:02:51.3]}
4. Bd2 {[%clk 0:02:58.9]} 4... a5 {[%clk 0:02:50.4]} 5. g3 {[%clk 0:02:58.9]}
5... d6 {[%clk 0:02:50.1]} 6. Bg2 {[%clk 0:02:59]} 6... Nbd7 {[%clk 0:02:50.4]}
7. O-O {[%clk 0:02:59.5]} 7... e5 {[%clk 0:02:49.6]} 8. Bc1 {[%clk 0:02:58.8]}
8... exd4 {[%clk 0:02:47.2]} 9. Nxd4 {[%clk 0:02:59.7]} 9... O-O {[%clk
0:02:46.4]} 10. Nc2 {[%clk 0:02:58.5]} 10... Bc5 {[%clk 0:02:45.7]} 11. Be3
{[%clk 0:02:54.8]} 11... Re8 {[%clk 0:02:45.3]} 12. Bxc5 {[%clk 0:02:53.7]}
12... Nxc5 {[%clk 0:02:43.8]} 13. Nc3 {[%clk 0:02:53.4]} 13... Bg4 {[%clk
0:02:35.2]} 14. h3 {[%clk 0:02:50.9]} 14... Bh5 {[%clk 0:02:34.7]} 15. Ne3
{[%clk 0:02:43.6]} 15... c6 {[%clk 0:02:24.7]} 16. Qd2 {[%clk 0:02:42.1]} 16...
Qc7 {[%clk 0:01:47.5]} 17. Rfd1 {[%clk 0:02:39.5]} 17... Rad8 {[%clk 0:01:47]}
18. Rac1 {[%clk 0:02:36.6]} 18... Bg6 {[%clk 0:01:45.8]} 19. b3 {[%clk
0:02:33.3]} 19... h6 {[%clk 0:01:45.4]} 20. Qb2 {[%clk 0:02:09.2]} 20... Nfe4
{[%clk 0:01:27.9]} 21. Nxe4 {[%clk 0:02:06.1]} 21... Nxe4 {[%clk 0:01:23.6]} 22.
Nf1 {[%clk 0:01:55.8]} 22... Qb6 {[%clk 0:01:21.3]} 23. e3 {[%clk 0:01:54.7]}
23... Nc5 {[%clk 0:01:17.6]} 24. Qc3 {[%clk 0:01:52.6]} 24... Ne4 {[%clk
0:01:11.6]} 25. Qd4 {[%clk 0:01:50.1]} 25... Qc7 {[%clk 0:01:08.2]} 26. Qb2
{[%clk 0:01:39.8]} 26... Nc5 {[%clk 0:01:03.4]} 27. Qc3 {[%clk 0:01:35.3]} 27...
Be4 {[%clk 0:01:01]} 28. f3 {[%clk 0:01:32.7]} 28... Bg6 {[%clk 0:00:59.6]} 29.
e4 {[%clk 0:01:33.3]} 29... f5 {[%clk 0:00:58.3]} 30. exf5 {[%clk 0:01:29.8]}
30... Bxf5 {[%clk 0:00:58.5]} 31. Qd4 {[%clk 0:01:27.1]} 31... Qe7 {[%clk
0:00:54.9]} 32. Rc3 {[%clk 0:01:17.6]} 32... Qf6 {[%clk 0:00:29.5]} 33. Qxf6
{[%clk 0:01:14.2]} 33... gxf6 {[%clk 0:00:29.6]} 34. Kf2 {[%clk 0:01:14.7]}
34... Kf7 {[%clk 0:00:26.1]} 35. Ne3 {[%clk 0:01:14.1]} 35... Bg6 {[%clk
0:00:25.8]} 36. Rd2 {[%clk 0:01:05.2]} 36... h5 {[%clk 0:00:24.2]} 37. Rc1
{[%clk 0:01:01.8]} 37... Nd3+ {[%clk 0:00:20.5]} 38. Rxd3 {[%clk 0:01:00.6]}
38... Bxd3 {[%clk 0:00:20.4]} 39. Rd1 {[%clk 0:01:01.3]} 39... Bg6 {[%clk
0:00:19.9]} 40. f4 {[%clk 0:00:59.1]} 40... Be4 {[%clk 0:00:19]} 41. Bf1 {[%clk
0:00:58.7]} 41... d5 {[%clk 0:00:18.2]} 42. cxd5 {[%clk 0:00:58.3]} 42... cxd5
{[%clk 0:00:18.4]} 43. Be2 {[%clk 0:00:57.8]} 43... h4 {[%clk 0:00:15.9]} 44.
Bh5+ {[%clk 0:00:56.9]} 44... Bg6 {[%clk 0:00:14.8]} 45. Bxg6+ {[%clk
0:00:53.1]} 45... Kxg6 {[%clk 0:00:14.8]} 46. f5+ {[%clk 0:00:45.9]} 46... Kg5
{[%clk 0:00:08.6]} 47. gxh4+ {[%clk 0:00:46.4]} 47... Kxh4 {[%clk 0:00:05.3]}
48. Nxd5 {[%clk 0:00:36.6]} 48... Re5 {[%clk 0:00:02.6]} 49. Rd4+ {[%clk
0:00:37]} 1-0

[Event "*** Titled Tuesday Blitz"]
[Site "Chess.com"]
[Date "2021.02.02"]
[Round "4"]
[White "NMJeevanK"]
[Black "Vnebo"]
[Result "1-0"]
[WhiteElo "2521"]
[BlackElo "2719"]
[TimeControl "180+1"]
[EndTime "10:42:04 PST"]
[Termination "NMJeevanK won by resignation"]

1. e4 {[%clk 0:03:00.9]} 1... d5 {[%clk 0:02:59.3]} 2. exd5 {[%clk 0:03:00.9]}
2... Qxd5 {[%clk 0:03:00.1]} 3. Nc3 {[%clk 0:03:01.8]} 3... Qd6 {[%clk
0:03:00.5]} 4. d4 {[%clk 0:03:02.2]} 4... Nf6 {[%clk 0:03:01.1]} 5. Be2 {[%clk
0:03:02.6]} 5... c6 {[%clk 0:02:58.2]} 6. Nf3 {[%clk 0:03:03.2]} 6... Bg4 {[%clk
0:02:57.7]} 7. O-O {[%clk 0:03:03.2]} 7... e6 {[%clk 0:02:58.1]} 8. Be3 {[%clk
0:03:02.4]} 8... Nbd7 {[%clk 0:02:57.1]} 9. h3 {[%clk 0:03:00.7]} 9... Bh5
{[%clk 0:02:56.7]} 10. a3 {[%clk 0:02:58.6]} 10... Qc7 {[%clk 0:02:56.2]} 11. b4
{[%clk 0:02:56.2]} 11... Be7 {[%clk 0:02:54.2]} 12. Qd2 {[%clk 0:02:52.2]} 12...
O-O {[%clk 0:02:41.3]} 13. Bf4 {[%clk 0:02:50.4]} 13... Bd6 {[%clk 0:02:41.6]}
14. Bxd6 {[%clk 0:02:47.7]} 14... Qxd6 {[%clk 0:02:42.5]} 15. Rfd1 {[%clk
0:02:41.3]} 15... Rfd8 {[%clk 0:02:39.7]} 16. Qe3 {[%clk 0:02:35]} 16... Nb6
{[%clk 0:02:33.9]} 17. Ne5 {[%clk 0:02:30.1]} 17... Nbd5 {[%clk 0:02:26.6]} 18.
Nxd5 {[%clk 0:02:27]} 18... Nxd5 {[%clk 0:02:27.5]} 19. Qd2 {[%clk 0:01:53.3]}
19... Bxe2 {[%clk 0:02:25.9]} 20. Qxe2 {[%clk 0:01:54.2]} 20... Qc7 {[%clk
0:01:20.8]} 21. Qg4 {[%clk 0:01:39.4]} 21... a5 {[%clk 0:01:12.6]} 22. c4 {[%clk
0:01:07.8]} 22... Nc3 {[%clk 0:01:04.5]} 23. Rdc1 {[%clk 0:00:35.8]} 23... axb4
{[%clk 0:01:03.4]} 24. axb4 {[%clk 0:00:36.7]} 24... Rxa1 {[%clk 0:00:37.6]} 25.
Rxa1 {[%clk 0:00:37.6]} 25... b5 {[%clk 0:00:37.6]} 26. Qf3 {[%clk 0:00:26.2]}
26... Na4 {[%clk 0:00:34.6]} 27. Nxc6 {[%clk 0:00:26]} 27... Rc8 {[%clk
0:00:31.1]} 28. cxb5 {[%clk 0:00:26.2]} 28... Nb6 {[%clk 0:00:31.4]} 29. Ra7
{[%clk 0:00:25]} 29... Nd5 {[%clk 0:00:21.1]} 30. Rxc7 {[%clk 0:00:23.7]} 30...
Rxc7 {[%clk 0:00:22]} 31. Qa3 {[%clk 0:00:20.3]} 31... g6 {[%clk 0:00:20.3]} 32.
Qa8+ {[%clk 0:00:20.3]} 32... Kg7 {[%clk 0:00:20.6]} 33. g3 {[%clk 0:00:16.8]}
33... h5 {[%clk 0:00:20.1]} 34. Ne5 {[%clk 0:00:11.7]} 34... Nb6 {[%clk
0:00:15.5]} 35. Qa6 {[%clk 0:00:11.1]} 35... Nd5 {[%clk 0:00:13.3]} 36. b6
{[%clk 0:00:11.2]} 36... Rc1+ {[%clk 0:00:12.6]} 37. Kg2 {[%clk 0:00:10.9]}
37... Nxb4 {[%clk 0:00:13.1]} 38. Qb5 {[%clk 0:00:09.5]} 38... Nc2 {[%clk
0:00:10.2]} 39. b7 {[%clk 0:00:07.3]} 39... Nxd4 {[%clk 0:00:09.4]} 40. Qb2
{[%clk 0:00:05.5]} 1-0

[Event "*** Titled Tuesday Blitz"]
[Site "Chess.com"]
[Date "2021.02.02"]
[Round "4"]
[White "djano"]
[Black "Homino"]
[Result "1-0"]
[WhiteElo "2476"]
[BlackElo "2307"]
[TimeControl "180+1"]
[EndTime "10:42:04 PST"]
[Termination "djano won on time"]

1. c4 {[%clk 0:03:00.9]} 1... c5 {[%clk 0:03:00]} 2. Nf3 {[%clk 0:02:57]} 2...
Nc6 {[%clk 0:02:59]} 3. Nc3 {[%clk 0:02:51.7]} 3... g6 {[%clk 0:02:58.7]} 4. b3
{[%clk 0:02:48.8]} 4... Bg7 {[%clk 0:02:58.2]} 5. Bb2 {[%clk 0:02:49.2]} 5...
Nf6 {[%clk 0:02:58.1]} 6. d3 {[%clk 0:02:45.7]} 6... O-O {[%clk 0:02:57.8]} 7.
Qd2 {[%clk 0:02:43.4]} 7... d5 {[%clk 0:02:52.5]} 8. cxd5 {[%clk 0:02:43.1]}
8... Nxd5 {[%clk 0:02:52.6]} 9. Nxd5 {[%clk 0:02:41.5]} 9... Qxd5 {[%clk
0:02:51.6]} 10. Bxg7 {[%clk 0:02:37.3]} 10... Kxg7 {[%clk 0:02:52.5]} 11. g3
{[%clk 0:02:37]} 11... e5 {[%clk 0:02:43.9]} 12. Rc1 {[%clk 0:02:33.5]} 12...
Bg4 {[%clk 0:02:20]} 13. Bg2 {[%clk 0:02:33]} 13... Nd4 {[%clk 0:02:14.2]} 14.
O-O {[%clk 0:02:12.9]} 14... Nxf3+ {[%clk 0:02:02.5]} 15. exf3 {[%clk 0:02:10]}
15... Bxf3 {[%clk 0:01:23.4]} 16. Bxf3 {[%clk 0:02:10.9]} 16... Qxf3 {[%clk
0:01:23.7]} 17. Rxc5 {[%clk 0:02:10.9]} 17... Rfe8 {[%clk 0:01:16.5]} 18. Qc3
{[%clk 0:02:01.7]} 18... Qf6 {[%clk 0:01:09.9]} 19. Rc7 {[%clk 0:01:54.7]} 19...
Qb6 {[%clk 0:00:54.2]} 20. Re1 {[%clk 0:01:50.3]} 20... Kg8 {[%clk 0:00:29.1]}
21. Qc4 {[%clk 0:01:49.5]} 21... Qf6 {[%clk 0:00:23.5]} 22. Rxb7 {[%clk
0:01:43.5]} 22... Rac8 {[%clk 0:00:21.4]} 23. Qa4 {[%clk 0:01:38.2]} 23... Red8
{[%clk 0:00:17.8]} 24. Qxa7 {[%clk 0:01:22.7]} 24... Rc2 {[%clk 0:00:14.2]} 25.
Rb8 {[%clk 0:01:14.1]} 25... Kg7 {[%clk 0:00:10.2]} 26. Rxd8 {[%clk 0:01:12.7]}
26... Qxd8 {[%clk 0:00:10.8]} 27. Qe3 {[%clk 0:01:10.4]} 27... Rxa2 {[%clk
0:00:08.2]} 28. Qxe5+ {[%clk 0:01:10.5]} 28... Kg8 {[%clk 0:00:07.8]} 29. d4
{[%clk 0:01:05.8]} 29... Rd2 {[%clk 0:00:05.9]} 30. Re4 {[%clk 0:01:04.1]} 30...
Rd1+ {[%clk 0:00:05.3]} 31. Kg2 {[%clk 0:01:04.5]} 31... Qa8 {[%clk 0:00:05.4]}
32. Qe8+ {[%clk 0:01:02.2]} 32... Qxe8 {[%clk 0:00:05]} 33. Rxe8+ {[%clk
0:01:03.1]} 33... Kg7 {[%clk 0:00:05.9]} 34. Rd8 {[%clk 0:01:01.5]} 34... Rb1
{[%clk 0:00:06.1]} 35. Rb8 {[%clk 0:01:01.2]} 35... Rd1 {[%clk 0:00:06.4]} 36.
Rb4 {[%clk 0:01:01.3]} 36... Kf6 {[%clk 0:00:06.9]} 37. Kf3 {[%clk 0:01:01.7]}
37... Ke6 {[%clk 0:00:06.3]} 38. Ke2 {[%clk 0:01:01.8]} 38... Rh1 {[%clk
0:00:06.4]} 39. h4 {[%clk 0:01:01.7]} 39... Rb1 {[%clk 0:00:06.2]} 40. Rb5
{[%clk 0:01:00.3]} 40... Rb2+ {[%clk 0:00:05.8]} 41. Ke3 {[%clk 0:01:00.8]}
41... h5 {[%clk 0:00:05.7]} 42. b4 {[%clk 0:00:57.4]} 42... Rb3+ {[%clk
0:00:04.5]} 43. Ke4 {[%clk 0:00:53.3]} 43... Rb2 {[%clk 0:00:03.5]} 44. Rb6+
{[%clk 0:00:52.7]} 44... Ke7 {[%clk 0:00:03.4]} 45. Kd5 {[%clk 0:00:46.5]} 45...
Rxf2 {[%clk 0:00:03]} 46. Rb7+ {[%clk 0:00:46.9]} 46... Kf6 {[%clk 0:00:02.5]}
47. b5 {[%clk 0:00:47.3]} 47... Rf3 {[%clk 0:00:02.3]} 48. b6 {[%clk 0:00:47.2]}
48... Rxg3 {[%clk 0:00:02.6]} 49. Rc7 {[%clk 0:00:47.2]} 49... Rb3 {[%clk
0:00:01.8]} 50. b7 {[%clk 0:00:47.7]} 1-0

[Event "*** Titled Tuesday Blitz"]
[Site "Chess.com"]
[Date "2021.02.02"]
[Round "4"]
[White "Tenamu"]
[Black "Mr_Penings"]
[Result "0-1"]
[WhiteElo "2382"]
[BlackElo "2603"]
[TimeControl "180+1"]
[EndTime "10:42:05 PST"]
[Termination "Mr_Penings won by checkmate"]

1. d4 {[%clk 0:03:00.9]} 1... Nf6 {[%clk 0:02:58.7]} 2. Nc3 {[%clk 0:02:55.3]}
2... d5 {[%clk 0:02:58.8]} 3. Bf4 {[%clk 0:02:54.5]} 3... c6 {[%clk 0:02:58.4]}
4. e3 {[%clk 0:02:53.6]} 4... g6 {[%clk 0:02:48.8]} 5. h4 {[%clk 0:02:52.4]}
5... h5 {[%clk 0:02:48.7]} 6. Nf3 {[%clk 0:02:51.2]} 6... Bg7 {[%clk 0:02:48.9]}
7. Ne5 {[%clk 0:02:51.3]} 7... Nfd7 {[%clk 0:02:40.6]} 8. Bg3 {[%clk 0:02:45.6]}
8... Nxe5 {[%clk 0:02:39.9]} 9. dxe5 {[%clk 0:02:46.5]} 9... Nd7 {[%clk
0:02:34.2]} 10. e6 {[%clk 0:02:46]} 10... fxe6 {[%clk 0:02:34.9]} 11. Bd3 {[%clk
0:02:45.1]} 11... Nf8 {[%clk 0:02:07.3]} 12. O-O {[%clk 0:02:39.3]} 12... e5
{[%clk 0:02:05.2]} 13. e4 {[%clk 0:02:31.6]} 13... d4 {[%clk 0:02:03.6]} 14. Ne2
{[%clk 0:02:29.9]} 14... Ne6 {[%clk 0:01:52.1]} 15. Bc4 {[%clk 0:02:17.7]} 15...
g5 {[%clk 0:01:25.3]} 16. hxg5 {[%clk 0:02:08.5]} 16... h4 {[%clk 0:01:26.2]}
17. Bh2 {[%clk 0:02:08]} 17... Nxg5 {[%clk 0:01:16.7]} 18. f4 {[%clk 0:02:06.2]}
18... Nxe4 {[%clk 0:01:15.1]} 19. fxe5 {[%clk 0:02:06.4]} 19... Qb6 {[%clk
0:00:49.2]} 20. Kh1 {[%clk 0:01:56.3]} 20... Ng3+ {[%clk 0:00:43.7]} 21. Nxg3
{[%clk 0:01:42.2]} 21... hxg3 {[%clk 0:00:43.1]} 22. Bf7+ {[%clk 0:01:43.1]}
22... Kd8 {[%clk 0:00:40.9]} 23. Bh5 {[%clk 0:01:40.1]} 23... gxh2 {[%clk
0:00:34]} 24. Bg4 {[%clk 0:01:39.8]} 24... Bxe5 {[%clk 0:00:30.3]} 25. Bxc8
{[%clk 0:01:39.4]} 25... Rxc8 {[%clk 0:00:31]} 26. Qg4 {[%clk 0:01:34.8]} 26...
Kc7 {[%clk 0:00:26.4]} 27. Rae1 {[%clk 0:01:34.2]} 27... Bd6 {[%clk 0:00:26.4]}
28. Qe6 {[%clk 0:01:31.3]} 28... Kb8 {[%clk 0:00:25.5]} 29. a4 {[%clk
0:01:30.5]} 29... Qc5 {[%clk 0:00:18.5]} 30. Rf5 {[%clk 0:01:29]} 30... Qxc2
{[%clk 0:00:17.2]} 31. a5 {[%clk 0:01:25.6]} 31... Rcg8 {[%clk 0:00:17.3]} 32.
Re2 {[%clk 0:01:10.9]} 32... Qd1+ {[%clk 0:00:16.4]} 33. Re1 {[%clk 0:01:11.2]}
33... Qg4 {[%clk 0:00:17]} 34. Re2 {[%clk 0:01:06.2]} 34... d3 {[%clk
0:00:17.2]} 35. Rd2 {[%clk 0:01:04.4]} 35... Qd4 {[%clk 0:00:10.9]} 36. Rf1
{[%clk 0:00:58.8]} 36... Bc5 {[%clk 0:00:10.4]} 37. Rdf2 {[%clk 0:00:50.4]}
37... d2 {[%clk 0:00:09.1]} 38. Qb3 {[%clk 0:00:38.6]} 38... d1=Q {[%clk
0:00:07.1]} 39. Qxd1 {[%clk 0:00:36.4]} 39... Qxd1 {[%clk 0:00:07.1]} 40. Rxd1
{[%clk 0:00:37.3]} 40... Bxf2 {[%clk 0:00:07.4]} 41. Rf1 {[%clk 0:00:38]} 41...
Bc5 {[%clk 0:00:06.7]} 42. Re1 {[%clk 0:00:37.6]} 42... Bd6 {[%clk 0:00:07.1]}
43. Rf1 {[%clk 0:00:33.2]} 43... Rf8 {[%clk 0:00:07.3]} 44. Re1 {[%clk
0:00:33.2]} 44... Kc7 {[%clk 0:00:07.4]} 45. a6 {[%clk 0:00:34.1]} 45... bxa6
{[%clk 0:00:07.3]} 46. Ra1 {[%clk 0:00:34.4]} 46... Rf2 {[%clk 0:00:07.2]} 47.
g4 {[%clk 0:00:35.3]} 47... Rhf8 {[%clk 0:00:07.4]} 48. Rg1 {[%clk 0:00:33.9]}
48... hxg1=Q+ {[%clk 0:00:07.3]} 49. Kxg1 {[%clk 0:00:34.8]} 49... Rxb2 {[%clk
0:00:07.9]} 50. g5 {[%clk 0:00:34.6]} 50... Rff2 {[%clk 0:00:08.3]} 51. g6
{[%clk 0:00:34.4]} 51... Rfc2 {[%clk 0:00:09.2]} 52. g7 {[%clk 0:00:34.2]} 52...
Rc1# {[%clk 0:00:10.1]} 0-1

[Event "*** Titled Tuesday Blitz"]
[Site "Chess.com"]
[Date "2021.02.02"]
[Round "4"]
[White "Matols"]
[Black "mjray79"]
[Result "0-1"]
[WhiteElo "2273"]
[BlackElo "2510"]
[TimeControl "180+1"]
[EndTime "10:42:06 PST"]
[Termination "mjray79 won by resignation"]

1. d4 {[%clk 0:03:00.9]} 1... Nf6 {[%clk 0:02:59.7]} 2. c4 {[%clk 0:03:00.7]}
2... g6 {[%clk 0:03:00.3]} 3. g3 {[%clk 0:03:00.7]} 3... Bg7 {[%clk 0:03:00.6]}
4. Bg2 {[%clk 0:03:00.1]} 4... d6 {[%clk 0:03:01.2]} 5. Nc3 {[%clk 0:02:59.3]}
5... O-O {[%clk 0:03:01.7]} 6. Nf3 {[%clk 0:02:59]} 6... Nc6 {[%clk 0:03:02.2]}
7. O-O {[%clk 0:02:58.4]} 7... a6 {[%clk 0:03:02.7]} 8. d5 {[%clk 0:02:53]} 8...
Na5 {[%clk 0:03:01.9]} 9. Qd3 {[%clk 0:02:52.3]} 9... c5 {[%clk 0:03:01]} 10. e4
{[%clk 0:02:49.5]} 10... Rb8 {[%clk 0:02:57.2]} 11. Bd2 {[%clk 0:02:35.2]} 11...
b5 {[%clk 0:02:54.7]} 12. b3 {[%clk 0:02:26.1]} 12... b4 {[%clk 0:02:44.1]} 13.
Ne2 {[%clk 0:02:19.4]} 13... e6 {[%clk 0:02:33.8]} 14. Rad1 {[%clk 0:02:04.2]}
14... exd5 {[%clk 0:02:24.7]} 15. cxd5 {[%clk 0:02:01.4]} 15... Bd7 {[%clk
0:02:20.4]} 16. Rfe1 {[%clk 0:01:48.4]} 16... Bb5 {[%clk 0:02:19.8]} 17. Qc2
{[%clk 0:01:48.2]} 17... Re8 {[%clk 0:02:17]} 18. Nh4 {[%clk 0:01:42.1]} 18...
Nxd5 {[%clk 0:02:10.5]} 19. Be3 {[%clk 0:01:26.6]} 19... Nxe3 {[%clk 0:02:09.5]}
20. fxe3 {[%clk 0:01:26.5]} 20... Qb6 {[%clk 0:01:54.8]} 21. Nf4 {[%clk
0:01:24.3]} 21... c4 {[%clk 0:01:50]} 22. Nd5 {[%clk 0:01:23.3]} 22... Qc5
{[%clk 0:01:50.2]} 23. bxc4 {[%clk 0:01:17]} 23... Nxc4 {[%clk 0:01:47.4]} 24.
Rc1 {[%clk 0:01:12.6]} 24... Rbc8 {[%clk 0:01:33.9]} 25. Kh1 {[%clk 0:01:11.3]}
25... Ne5 {[%clk 0:01:23.5]} 26. Qd2 {[%clk 0:01:03.7]} 26... Qa7 {[%clk
0:01:15.6]} 27. Nxb4 {[%clk 0:00:56.2]} 27... a5 {[%clk 0:01:09.1]} 28. Nd5
{[%clk 0:00:55.6]} 28... Nd3 {[%clk 0:01:00.9]} 29. Rxc8 {[%clk 0:00:54.5]}
29... Rxc8 {[%clk 0:01:01.8]} 30. Rb1 {[%clk 0:00:52.3]} 30... Bc4 {[%clk
0:00:46.4]} 31. Nf3 {[%clk 0:00:43.3]} 31... Bxd5 {[%clk 0:00:38.8]} 32. Qxd3
{[%clk 0:00:35.2]} 32... Bxa2 {[%clk 0:00:36.1]} 33. Rd1 {[%clk 0:00:30.2]}
33... a4 {[%clk 0:00:29]} 34. Qxd6 {[%clk 0:00:28.3]} 34... Be6 {[%clk
0:00:28.9]} 35. Ng5 {[%clk 0:00:26.7]} 35... Bb3 {[%clk 0:00:24.5]} 36. Rf1
{[%clk 0:00:22.5]} 36... a3 {[%clk 0:00:23.4]} 37. e5 {[%clk 0:00:20.2]} 37...
a2 {[%clk 0:00:23.6]} 38. Qd4 {[%clk 0:00:12]} 38... Qxd4 {[%clk 0:00:19.9]} 39.
exd4 {[%clk 0:00:11.9]} 39... Bc4 {[%clk 0:00:18.4]} 40. Ra1 {[%clk 0:00:10.3]}
40... Rb8 {[%clk 0:00:18]} 41. Bf1 {[%clk 0:00:02.6]} 41... Rb1 {[%clk
0:00:16.9]} 0-1